[Event "Belarus-ch Women 2022"]
[Site "Minsk"]
[Date "2022.01.13"]
[Round "1.1"]
[White "Ajusheva, Renata"]
[Black "Sidorenja, Milena"]
[Result "1/2-1/2"]
[ECO "A11"]
[WhiteElo "1464"]
[BlackElo "1510"]
[Annotator "NA"]
[PlyCount "61"]
[EventDate "2022.01.11"]
[EventType "tourn"]
[EventCountry "BLR"]
[SourceTitle "playchess.com"]
[Source "ChessBase"]
[SourceQuality "1"]
[TimeControl "40/5400+30:1800+30"]

1. c4 {[%emt 0:00:14]} e6 {[%emt 0:00:11]} 2. Nf3 {[%emt 0:01:28]} d5 {[%emt 0:00:16]} 3. e3 {[%emt 0:00:12]} c6 {[%emt 0:00:10]} 4. Be2 {[%emt 0:00:48]} f5 {[%emt 0:00:56]} 5. Nc3 {[%emt 0:06:51]} Nf6 {[%emt 0:00:11]} 6. b3 {[%emt 0:00:08]} Bd6 {[%emt 0:01:10]} 7. Bb2 {[%emt 0:00:16]} O-O {[%emt 0:01:36]} 8. Qc2 {[%emt 0:00:22]} a6 {[%emt 0:15:09]} 9. a3 {[%emt 0:14:48]} b5 {[%emt 0:02:58]} 10. O-O {[%emt 0:15:26]} Ra7 {[%emt 0:30:21]} 11. c5 {[%emt 0:05:19]} Bc7 {[%emt 0:01:10]} 12. Na2 {[%emt 0:00:33]} Qe7 {[%emt 0:02:09]} 13. Ne5 {[%emt 0:01:07]} Nfd7 {[%emt 0:05:20]} 14. Nxd7 {[%emt 0:15:55]} Nxd7 {[%emt 0:00:13]} 15. d4 {[%emt 0:01:04]} Rf6 {[%emt 0:16:33]} 16. f4 {[%emt 0:00:43]} Rh6 {[%emt 0:00:29]} 17. Bf3 {[%emt 0:00:22]} g5 {[%emt 0:00:50]} 18. g3 {[%emt 0:00:32]} Rg6 {[%emt 0:04:43]} 19. Kh1 {[%emt 0:00:17]} g4 {[%emt 0:00:27]} 20. Be2 {[%emt 0:00:47]} h5 {[%emt 0:01:15]} 21. Kg2 {[%emt 0:00:13]} h4 {[%emt 0:00:44]} 22. Rh1 {[%emt 0:00:31]} Nf6 {[%emt 0:00:55]} 23. Bd3 {[%emt 0:00:21]} Qh7 {[%emt 0:04:50]} 24. Nc3 {[%emt 0:01:08]} Bb8 {[%emt 0:03:54]} 25. Qd1 {[%emt 0:00:42]} Rf7 {[%emt 0:01:03]} 26. Ne2 {[%emt 0:00:52]} Ne4 {[%emt 0:00:32]} 27. Bxe4 {[%emt 0:00:16]} fxe4 {[%emt 0:00:04]} 28. Bc3 {[%emt 0:00:52]} Rgf6 {[%emt 0:03:23]} 29. Qc1 {[%emt 0:01:08]} Rf8 {[%emt 0:00:23]} 30. Rb1 {[%emt 0:01:02]} Qh5 {[%emt 0:00:45]} 31. b4 {[%emt 0:00:54]} 1/2-1/2

[Event "Belarus-ch Women 2022"]
[Site "Minsk"]
[Date "2022.01.13"]
[Round "1.2"]
[White "Zeliantsova, Kseniya"]
[Black "Bendik, Margarita"]
[Result "1-0"]
[ECO "B01"]
[WhiteElo "1988"]
[BlackElo "1388"]
[Annotator "ChessBase"]
[PlyCount "64"]
[EventDate "2022.01.11"]
[EventType "tourn"]
[EventCountry "BLR"]
[SourceTitle "playchess.com"]
[Source "ChessBase"]
[SourceQuality "1"]
[TimeControl "40/5400+30:1800+30"]

1. e4 {[%emt 0:00:58]} d5 {[%emt 0:00:06]} 2. exd5 {[%emt 0:00:04]} Qxd5 {[%emt 0:00:03]} 3. Nc3 {[%emt 0:00:09]} Qd6 {[%emt 0:00:05]} 4. d4 {[%emt 0:00:31]} Nf6 {[%emt 0:00:08]} 5. Nf3 {[%emt 0:00:06]} c6 {[%emt 0:00:04]} 6. Ne5 {[%emt 0:00:16]} Nbd7 {[%emt 0:00:08]} 7. f4 {[%emt 0:00:25]} Nb6 {[%emt 0:00:26]} 8. g4 {[%emt 0:00:46]} g6 {[%emt 0:01:02]} 9. Bg2 {[%emt 0:01:47]} Bg7 {[%emt 0:01:20]} 10. O-O {[%emt 0:01:22]} O-O {[%emt 0:10:07]} 11. g5 {[%emt 0:06:38]} Nfd5 {[%emt 0:02:28]} 12. Ne4 {[%emt 0:00:37]} Qc7 {[%emt 0:03:47]} 13. c3 {[%emt 0:07:28]} f6 {[%emt 0:12:36]} 14. Nd3 {[%emt 0:02:53]} Nc4 {[%emt 0:19:32]} 15. Qe2 {[%emt 0:04:35]} Bf5 {[%emt 0:04:18]} 16. Ndc5 {[%emt 0:06:25]} b5 {[%emt 0:04:37]} 17. a4 {[%emt 0:16:28]} a6 {[%emt 0:03:05]} 18. Ng3 {[%emt 0:00:50]} Qd6 {[%emt 0:13:51]} 19. Nxf5 {[%emt 0:03:54]} gxf5 {[%emt 0:00:08]} 20. Ne6 {[%emt 0:01:30]} Rf7 {[%emt 0:04:14]} 21. axb5 {[%emt 0:00:43]} cxb5 {[%emt 0:01:29]} 22. Bxd5 {[%emt 0:01:02]} Qxd5 {[%emt 0:01:15]} 23. Nc7 {[%emt 0:02:17]} Qc6 {[%emt 0:00:04]} 24. Nxa8 {[%emt 0:00:06]} Qxa8 {[%emt 0:00:04]} 25. Qe6 {[%emt 0:03:19]} Nd6 {[%emt 0:02:21]} 26. h4 {[%emt 0:00:49]} Kf8 {[%emt 0:00:35]} 27. Qa2 {[%emt 0:02:49]} Qe4 {[%emt 0:07:36]} 28. Qxa6 {[%emt 0:00:18]} Qd3 {[%emt 0:00:12]} 29. Qa8+ {[%emt 0:00:16]} Ne8 {[%emt 0:00:05]} 30. Qf3 {[%emt 0:00:51]} Qc4 {[%emt 0:00:52]} 31. Ra8 {[%emt 0:00:16]} e5 {[%emt 0:01:19]} 32. b3 {[%emt 0:00:31]} Qe6 {[%emt 0:02:26]} 1-0

[Event "Belarus-ch Women 2022"]
[Site "Minsk"]
[Date "2022.01.13"]
[Round "1.3"]
[White "Norman, Kseniya"]
[Black "Liashkevich, Lizaveta"]
[Result "1/2-1/2"]
[ECO "B28"]
[WhiteElo "1810"]
[BlackElo "1569"]
[Annotator "NA"]
[PlyCount "108"]
[EventDate "2022.01.11"]
[EventType "tourn"]
[EventCountry "BLR"]
[SourceTitle "playchess.com"]
[Source "ChessBase"]
[SourceQuality "1"]
[TimeControl "40/5400+30:1800+30"]

1. e4 {[%emt 0:00:07]} c5 {[%emt 0:00:16]} 2. Nf3 {[%emt 0:00:54]} a6 {[%emt 0:01:36]} 3. c4 {[%emt 1:30:59]} Nc6 {[%emt 0:02:55]} 4. Nc3 {[%emt 0:00:00]} e5 {[%emt 0:03:15]} 5. Be2 {[%emt 0:00:00]} g6 {[%emt 0:04:48]} 6. d3 {[%emt 0:00:00]} Bg7 {[%emt 0:05:19]} 7. Bg5 {[%emt 0:00:00]} Nge7 {[%emt 0:07:50]} 8. Nd5 {[%emt 0:00:00]} Qa5+ {[%emt 0:31:12]} 9. Qd2 {[%emt 0:00:00]} Qxd2+ {[%emt 0:00:49]} 10. Kxd2 {[%emt 0:00:00]} Nxd5 {[%emt 0:02:58]} 11. exd5 {[%emt 0:00:00]} Nd4 {[%emt 0:03:06]} 12. Nxd4 {[%emt 0:00:00]} cxd4 {[%emt 0:03:55]} 13. Kc2 {[%emt 0:00:00]} d6 {[%emt 0:06:40]} 14. Rhe1 {[%emt 0:00:00]} f5 {[%emt 0:05:06]} 15. Bf3 {[%emt 0:00:00]} Kf7 {[%emt 0:03:01]} 16. Bd2 {[%emt 0:00:00]} b5 {[%emt 0:03:18]} 17. cxb5 {[%emt 0:00:00]} axb5 {[%emt 0:00:32]} 18. Kb3 {[%emt 0:00:00]} Bd7 {[%emt 0:03:20]} 19. Bb4 {[%emt 0:00:00]} Ra6 {[%emt 0:01:25]} 20. Rac1 {[%emt 0:00:00]} Rb8 {[%emt 0:02:39]} 21. Rc7 {[%emt 0:02:51]} Ke8 {[%emt 0:00:27]} 22. Rec1 {[%emt 0:00:50]} Bf6 {[%emt 0:01:27]} 23. R1c6 {[%emt 0:05:14]} Bxc6 {[%emt 0:01:31]} 24. dxc6 {[%emt 0:00:02]} Be7 {[%emt 0:01:11]} 25. Bd5 {[%emt 0:00:59]} Rd8 {[%emt 0:02:55]} 26. Rb7 {[%emt 0:00:31]} Rc8 {[%emt 0:00:37]} 27. Rxb5 {[%emt 0:00:44]} Raxc6 {[%emt 0:01:08]} 28. Bxc6+ {[%emt 0:00:01]} Rxc6 {[%emt 0:00:07]} 29. f3 {[%emt 0:00:52]} Kd7 {[%emt 0:00:39]} 30. a4 {[%emt 0:00:36]} Kc7 {[%emt 0:00:35]} 31. Ba5+ {[%emt 0:00:28]} Kc8 {[%emt 0:00:17]} 32. Bb6 {[%emt 0:00:47]} Bd8 {[%emt 0:00:57]} 33. Bxd8 {[%emt 0:00:05]} Kxd8 {[%emt 0:00:02]} 34. Rb7 {[%emt 0:00:55]} d5 {[%emt 0:01:00]} 35. Rb8+ {[%emt 0:00:32]} Kc7 {[%emt 0:00:30]} 36. Rb4 {[%emt 0:00:29]} Rc1 {[%emt 0:00:28]} 37. a5 {[%emt 0:00:30]} Rc5 {[%emt 0:00:26]} 38. Ka4 {[%emt 0:00:29]} Rc1 {[%emt 0:00:34]} 39. Kb5 {[%emt 0:00:30]} Kb7 {[%emt 0:00:13]} 40. Ra4 {[%emt 0:00:00]} Rc2 {[%emt 0:00:00]} 41. Rb4 {[%emt 0:01:56]} e4 {[%emt 0:15:45]} 42. dxe4 {[%emt 0:12:13]} fxe4 {[%emt 0:10:01]} 43. fxe4 {[%emt 0:03:25]} dxe4 {[%emt 0:00:31]} 44. Ka4+ {[%emt 0:03:15]} Ka7 {[%emt 0:02:45]} 45. Rxd4 {[%emt 0:00:38]} Rxb2 {[%emt 0:00:10]} 46. Rxe4 {[%emt 0:00:15]} Rxg2 {[%emt 0:01:18]} 47. Re7+ {[%emt 0:05:27]} Ka6 {[%emt 0:00:31]} 48. Rxh7 {[%emt 0:00:17]} Rg4+ {[%emt 0:00:33]} 49. Kb3 {[%emt 0:00:10]} Kxa5 {[%emt 0:00:10]} 50. Kc3 {[%emt 0:00:08]} Kb5 {[%emt 0:00:16]} 51. Kd3 {[%emt 0:01:04]} Kc5 {[%emt 0:00:11]} 52. Ke3 {[%emt 0:00:59]} g5 {[%emt 0:01:05]} 53. Rh5 {[%emt 0:03:15]} Kd6 {[%emt 0:00:48]} 54. Kf3 {[%emt 0:00:23]} Rh4 {[%emt 0:00:36]} 1/2-1/2

[Event "Belarus-ch Women 2022"]
[Site "Minsk"]
[Date "2022.01.13"]
[Round "1.4"]
[White "Khomich, Maryna"]
[Black "Shaban, Aliaksandra"]
[Result "1-0"]
[ECO "E69"]
[WhiteElo "1627"]
[BlackElo "1680"]
[Annotator "NA"]
[PlyCount "103"]
[EventDate "2022.01.11"]
[EventType "tourn"]
[EventCountry "BLR"]
[SourceTitle "playchess.com"]
[Source "ChessBase"]
[SourceQuality "1"]
[TimeControl "40/5400+30:1800+30"]

1. c4 {[%emt 0:00:02]} Nf6 {[%emt 0:00:11]} 2. Nf3 {[%emt 0:00:10]} g6 {[%emt 0:00:07]} 3. g3 {[%emt 0:00:10]} Bg7 {[%emt 0:00:08]} 4. Bg2 {[%emt 0:00:10]} O-O {[%emt 0:00:11]} 5. O-O {[%emt 0:00:06]} d6 {[%emt 0:00:03]} 6. d4 {[%emt 0:02:47]} Nbd7 {[%emt 0:00:43]} 7. Nc3 {[%emt 0:00:22]} e5 {[%emt 0:01:27]} 8. e4 {[%emt 0:02:40]} Qe7 {[%emt 0:02:22]} 9. Re1 {[%emt 0:01:52]} c6 {[%emt 0:01:18]} 10. h3 {[%emt 0:06:32]} Nb6 {[%emt 0:04:52]} 11. b3 {[%emt 0:03:13]} Nfd7 {[%emt 0:03:13]} 12. Qd2 {[%emt 0:05:08]} exd4 {[%emt 0:06:39]} 13. Nxd4 {[%emt 0:00:13]} Nc5 {[%emt 0:00:18]} 14. Bb2 {[%emt 0:02:27]} Qc7 {[%emt 0:02:58]} 15. Rad1 {[%emt 0:01:59]} a5 {[%emt 0:03:05]} 16. Qe2 {[%emt 0:04:29]} Bd7 {[%emt 0:01:41]} 17. Bc1 {[%emt 0:07:46]} Rae8 {[%emt 0:01:34]} 18. Bf4 {[%emt 0:00:14]} f5 {[%emt 0:06:29]} 19. Qd2 {[%emt 0:03:52]} Be5 {[%emt 0:05:45]} 20. Bh6 {[%emt 0:16:19]} Rf7 {[%emt 0:01:59]} 21. exf5 {[%emt 0:00:23]} gxf5 {[%emt 0:05:49]} 22. Nf3 {[%emt 0:04:10]} Ne6 {[%emt 0:10:16]} 23. Ne2 {[%emt 0:09:24]} a4 {[%emt 0:01:53]} 24. Nf4 {[%emt 0:02:43]} axb3 {[%emt 0:04:10]} 25. axb3 {[%emt 0:00:45]} Nc5 {[%emt 0:02:52]} 26. Nh5 {[%emt 0:03:21]} Qd8 {[%emt 0:05:02]} 27. Nxe5 {[%emt 0:00:40]} dxe5 {[%emt 0:01:01]} 28. Bg5 {[%emt 0:00:57]} Nxb3 {[%emt 0:10:59]} 29. Bxd8 {[%emt 0:01:53]} Nxd2 {[%emt 0:00:13]} 30. Bxb6 {[%emt 0:00:24]} Nxc4 {[%emt 0:00:30]} 31. Be3 {[%emt 0:09:41]} Nxe3 {[%emt 0:00:43]} 32. Rxe3 {[%emt 0:00:22]} Kf8 {[%emt 0:05:13]} 33. Bf1 {[%emt 0:03:25]} b5 {[%emt 0:02:12]} 34. Nf6 {[%emt 0:02:41]} Rxf6 {[%emt 0:01:27]} 35. Rxd7 {[%emt 0:00:05]} h6 {[%emt 0:00:35]} 36. Rc7 {[%emt 0:02:25]} e4 {[%emt 0:03:02]} 37. Rc3 {[%emt 0:01:04]} Ree6 {[%emt 0:00:22]} 38. h4 {[%emt 0:02:09]} Ke8 {[%emt 0:01:10]} 39. Bh3 {[%emt 0:00:31]} Kd8 {[%emt 0:00:29]} 40. Rb7 {[%emt 0:00:00]} Re5 {[%emt 0:00:00]} 41. Ra3 {[%emt 0:06:28]} Kc8 {[%emt 0:02:10]} 42. Rh7 {[%emt 0:02:38]} Kb8 {[%emt 0:01:07]} 43. Raa7 {[%emt 0:03:37]} Ree6 {[%emt 0:02:27]} 44. Rab7+ {[%emt 0:00:52]} Kc8 {[%emt 0:00:34]} 45. Rbg7 {[%emt 0:08:01]} Re8 {[%emt 0:01:34]} 46. g4 {[%emt 0:00:16]} Rd8 {[%emt 0:05:27]} 47. g5 {[%emt 0:03:55]} hxg5 {[%emt 0:00:30]} 48. hxg5 {[%emt 0:00:04]} Rff8 {[%emt 0:01:23]} 49. Rc7+ {[%emt 0:01:51]} Kb8 {[%emt 0:00:02]} 50. Rxc6 {[%emt 0:01:17]} Rd5 {[%emt 0:00:26]} 51. g6 {[%emt 0:00:35]} Rg8 {[%emt 0:00:35]} 52. Rf7 {[%emt 0:00:52]} 1-0

[Event "Belarus-ch Women 2022"]
[Site "Minsk"]
[Date "2022.01.13"]
[Round "1.5"]
[White "Koishman, Karina"]
[Black "Poliakova, Varvara"]
[Result "0-1"]
[ECO "D01"]
[WhiteElo "1359"]
[BlackElo "2116"]
[Annotator "ChessBase"]
[PlyCount "64"]
[EventDate "2022.01.11"]
[EventType "tourn"]
[EventCountry "BLR"]
[SourceTitle "playchess.com"]
[Source "ChessBase"]
[SourceQuality "1"]
[TimeControl "40/5400+30:1800+30"]

1. d4 {[%emt 0:00:02]} d5 {[%emt 0:00:06]} 2. Nc3 {[%emt 0:00:06]} Nf6 {[%emt 0:00:55]} 3. Bg5 {[%emt 0:00:13]} Nbd7 {[%emt 0:00:14]} 4. f3 {[%emt 0:00:11]} c6 {[%emt 0:00:31]} 5. Qd2 {[%emt 0:00:16]} e5 {[%emt 0:04:05]} 6. e3 {[%emt 0:10:50]} Be7 {[%emt 0:03:06]} 7. O-O-O {[%emt 0:01:57]} O-O {[%emt 0:01:02]} 8. Nge2 {[%emt 0:06:57]} b5 {[%emt 0:01:18]} 9. Ng3 {[%emt 0:01:38]} exd4 {[%emt 0:07:01]} 10. exd4 {[%emt 0:03:04]} Nb6 {[%emt 0:03:03]} 11. Bd3 {[%emt 0:10:14]} Nc4 {[%emt 0:01:23]} 12. Qf4 {[%emt 0:07:04]} Qa5 {[%emt 0:23:30]} 13. Bxf6 {[%emt 0:20:37]} Bxf6 {[%emt 0:00:46]} 14. Nh5 {[%emt 0:01:34]} Bd8 {[%emt 0:06:07]} 15. Kb1 {[%emt 0:11:32]} Nxb2 {[%emt 0:05:53]} 16. Kxb2 {[%emt 0:03:17]} Qb4+ {[%emt 0:00:28]} 17. Kc1 {[%emt 0:00:19]} Qxc3 {[%emt 0:00:13]} 18. Qe5 {[%emt 0:07:05]} f6 {[%emt 0:01:13]} 19. Qg3 {[%emt 0:02:29]} Qa3+ {[%emt 0:00:27]} 20. Kb1 {[%emt 0:01:12]} Qb4+ {[%emt 0:00:52]} 21. Kc1 {[%emt 0:00:15]} Qe7 {[%emt 0:00:35]} 22. Rhe1 {[%emt 0:01:08]} Qf7 {[%emt 0:00:10]} 23. Nf4 {[%emt 0:02:04]} Bc7 {[%emt 0:00:54]} 24. h4 {[%emt 0:03:35]} Bd6 {[%emt 0:00:04]} 25. Qh2 {[%emt 0:00:45]} Qc7 {[%emt 0:00:07]} 26. g3 {[%emt 0:00:33]} Qa5 {[%emt 0:00:06]} 27. Qd2 {[%emt 0:01:20]} Qxa2 {[%emt 0:00:32]} 28. Bxh7+ {[%emt 0:02:10]} Kxh7 {[%emt 0:00:19]} 29. Qd3+ {[%emt 0:00:09]} Kg8 {[%emt 0:00:32]} 30. Nh5 {[%emt 0:00:42]} Ba3+ {[%emt 0:01:52]} 31. Kd2 {[%emt 0:00:10]} Bb4+ {[%emt 0:00:03]} 32. Ke2 {[%emt 0:00:17]} Qc4 {[%emt 0:01:18]} 0-1

[Event "Belarus-ch Women 2022"]
[Site "Minsk"]
[Date "2022.01.13"]
[Round "2.1"]
[White "Sidorenja, Milena"]
[Black "Poliakova, Varvara"]
[Result "1-0"]
[ECO "B22"]
[WhiteElo "1510"]
[BlackElo "2116"]
[Annotator "ChessBase"]
[PlyCount "85"]
[EventDate "2022.01.11"]
[EventType "tourn"]
[EventCountry "BLR"]
[SourceTitle "playchess.com"]
[Source "ChessBase"]
[SourceQuality "1"]
[TimeControl "40/5400+30:1800+30"]

1. e4 {[%emt 0:00:02]} c5 {[%emt 0:00:09]} 2. c3 {[%emt 0:00:08]} Nf6 {[%emt 0:00:06]} 3. e5 {[%emt 0:00:07]} Nd5 {[%emt 0:00:04]} 4. d4 {[%emt 0:00:12]} cxd4 {[%emt 0:00:08]} 5. cxd4 {[%emt 0:00:07]} e6 {[%emt 0:01:05]} 6. Nc3 {[%emt 0:00:15]} d6 {[%emt 0:00:23]} 7. f4 {[%emt 0:00:49]} dxe5 {[%emt 0:00:15]} 8. fxe5 {[%emt 0:00:10]} Bb4 {[%emt 0:02:53]} 9. Bb5+ {[%emt 0:29:17]} Bd7 {[%emt 0:02:48]} 10. Bxd7+ {[%emt 0:00:10]} Nxd7 {[%emt 0:00:16]} 11. Qd3 {[%emt 0:07:21]} Rc8 {[%emt 0:04:17]} 12. Bd2 {[%emt 0:03:55]} N7b6 {[%emt 0:02:17]} 13. a3 {[%emt 0:17:02]} Be7 {[%emt 0:03:30]} 14. Nf3 {[%emt 0:03:59]} Nc4 {[%emt 0:01:17]} 15. O-O {[%emt 0:02:15]} Nxd2 {[%emt 0:01:21]} 16. Nxd2 {[%emt 0:00:07]} O-O {[%emt 0:01:56]} 17. Nde4 {[%emt 0:02:36]} Rc6 {[%emt 0:15:48]} 18. Rf3 {[%emt 0:05:10]} f5 {[%emt 0:12:21]} 19. exf6 {[%emt 0:00:31]} gxf6 {[%emt 0:06:30]} 20. Raf1 {[%emt 0:13:13]} f5 {[%emt 0:00:44]} 21. Nxd5 {[%emt 0:00:29]} Qxd5 {[%emt 0:00:40]} 22. Nc3 {[%emt 0:00:35]} Qd7 {[%emt 0:05:32]} 23. d5 {[%emt 0:01:25]} Rd6 {[%emt 0:02:40]} 24. g4 {[%emt 0:02:22]} fxg4 {[%emt 0:03:46]} 25. Rxf8+ {[%emt 0:00:09]} Bxf8 {[%emt 0:00:02]} 26. Ne4 {[%emt 0:00:11]} exd5 {[%emt 0:08:15]} 27. Nxd6 {[%emt 0:00:26]} Qxd6 {[%emt 0:00:07]} 28. Qf5 {[%emt 0:00:22]} Qe7 {[%emt 0:03:18]} 29. Qxd5+ {[%emt 0:00:41]} Kh8 {[%emt 0:01:08]} 30. Qf5 {[%emt 0:02:18]} Qc5+ {[%emt 0:02:45]} 31. Qxc5 {[%emt 0:00:05]} Bxc5+ {[%emt 0:00:03]} 32. Kg2 {[%emt 0:00:09]} Kg7 {[%emt 0:01:24]} 33. b4 {[%emt 0:01:01]} Be3 {[%emt 0:03:08]} 34. Re1 {[%emt 0:00:53]} Bg5 {[%emt 0:00:05]} 35. Rd1 {[%emt 0:00:08]} Kg6 {[%emt 0:03:52]} 36. Rd7 {[%emt 0:00:10]} Bc1 {[%emt 0:00:05]} 37. a4 {[%emt 0:00:12]} h5 {[%emt 0:02:13]} 38. Rxb7 {[%emt 0:00:10]} Be3 {[%emt 0:00:04]} 39. b5 {[%emt 0:00:25]} h4 {[%emt 0:01:42]} 40. h3 {[%emt 0:00:00]} gxh3+ {[%emt 0:00:00]} 41. Kxh3 {[%emt 0:00:17]} Kf6 {[%emt 0:01:14]} 42. a5 {[%emt 0:01:10]} Ke6 {[%emt 0:01:18]} 43. a6 {[%emt 0:00:14]} 1-0

[Event "Belarus-ch Women 2022"]
[Site "Minsk"]
[Date "2022.01.13"]
[Round "2.2"]
[White "Shaban, Aliaksandra"]
[Black "Koishman, Karina"]
[Result "1/2-1/2"]
[ECO "E33"]
[WhiteElo "1680"]
[BlackElo "1359"]
[Annotator "NA"]
[PlyCount "72"]
[EventDate "2022.01.11"]
[EventType "tourn"]
[EventCountry "BLR"]
[SourceTitle "playchess.com"]
[Source "ChessBase"]
[SourceQuality "1"]
[TimeControl "40/5400+30:1800+30"]

1. d4 {[%emt 0:00:07]} Nf6 {[%emt 0:00:23]} 2. c4 {[%emt 0:00:05]} e6 {[%emt 0:00:08]} 3. Nc3 {[%emt 0:00:04]} Bb4 {[%emt 0:00:43]} 4. Qc2 {[%emt 0:00:31]} Nc6 {[%emt 0:02:20]} 5. Nf3 {[%emt 0:02:07]} d5 {[%emt 0:02:07]} 6. e3 {[%emt 0:02:23]} Bxc3+ {[%emt 0:04:44]} 7. bxc3 {[%emt 0:01:21]} O-O {[%emt 0:01:57]} 8. Bd3 {[%emt 0:01:11]} Re8 {[%emt 0:04:15]} 9. O-O {[%emt 0:01:07]} e5 {[%emt 0:03:14]} 10. cxd5 {[%emt 0:02:28]} Qxd5 {[%emt 0:03:36]} 11. e4 {[%emt 0:06:18]} Qd6 {[%emt 0:05:01]} 12. d5 {[%emt 0:01:37]} Ne7 {[%emt 0:02:30]} 13. a4 {[%emt 0:05:43]} Ng6 {[%emt 0:03:02]} 14. Ba3 {[%emt 0:01:18]} Qd8 {[%emt 0:02:18]} 15. Rab1 {[%emt 0:01:54]} Nf4 {[%emt 0:03:47]} 16. Bb5 {[%emt 0:01:28]} Bd7 {[%emt 0:00:08]} 17. Bxd7 {[%emt 0:00:14]} Qxd7 {[%emt 0:00:07]} 18. Rxb7 {[%emt 0:11:37]} Nxg2 {[%emt 0:06:17]} 19. Kh1 {[%emt 0:04:44]} Nf4 {[%emt 0:09:02]} 20. Ng1 {[%emt 0:04:54]} N6xd5 {[%emt 0:05:49]} 21. Rb5 {[%emt 0:06:48]} Nf6 {[%emt 0:03:20]} 22. Rd1 {[%emt 0:03:35]} Qe6 {[%emt 0:04:14]} 23. f3 {[%emt 0:02:11]} N6h5 {[%emt 0:04:35]} 24. Bc1 {[%emt 0:05:32]} Rad8 {[%emt 0:01:44]} 25. Bxf4 {[%emt 0:04:53]} Nxf4 {[%emt 0:00:47]} 26. Rbb1 {[%emt 0:03:05]} g6 {[%emt 0:03:06]} 27. Ne2 {[%emt 0:04:59]} Nxe2 {[%emt 0:07:35]} 28. Qxe2 {[%emt 0:00:13]} Qc6 {[%emt 0:00:15]} 29. Qc2 {[%emt 0:01:10]} f5 {[%emt 0:01:11]} 30. Rxd8 {[%emt 0:05:00]} Rxd8 {[%emt 0:00:14]} 31. Rb5 {[%emt 0:01:38]} Qc4 {[%emt 0:03:53]} 32. Qb3 {[%emt 0:07:10]} Qxb3 {[%emt 0:00:44]} 33. Rxb3 {[%emt 0:00:02]} c5 {[%emt 0:01:42]} 34. Rb5 {[%emt 0:01:17]} Rd3 {[%emt 0:04:56]} 35. Rxc5 {[%emt 0:00:38]} Rxf3 {[%emt 0:00:26]} 36. Rxe5 {[%emt 0:02:02]} Rxc3 {[%emt 0:00:24]} 1/2-1/2

[Event "Belarus-ch Women 2022"]
[Site "Minsk"]
[Date "2022.01.13"]
[Round "2.3"]
[White "Liashkevich, Lizaveta"]
[Black "Khomich, Maryna"]
[Result "1/2-1/2"]
[ECO "D10"]
[WhiteElo "1569"]
[BlackElo "1627"]
[Annotator "NA"]
[PlyCount "71"]
[EventDate "2022.01.11"]
[EventType "tourn"]
[EventCountry "BLR"]
[SourceTitle "playchess.com"]
[Source "ChessBase"]
[SourceQuality "1"]
[TimeControl "40/5400+30:1800+30"]

1. d4 {[%emt 0:00:03]} d5 {[%emt 0:00:04]} 2. c4 {[%emt 0:00:10]} c6 {[%emt 0:00:04]} 3. cxd5 {[%emt 0:00:11]} cxd5 {[%emt 0:00:05]} 4. Bf4 {[%emt 0:00:19]} Nc6 {[%emt 0:00:44]} 5. Nc3 {[%emt 0:01:20]} Nf6 {[%emt 0:00:16]} 6. e3 {[%emt 0:00:41]} Bf5 {[%emt 0:03:15]} 7. Qb3 {[%emt 0:08:30]} Na5 {[%emt 0:01:55]} 8. Qa4+ {[%emt 0:01:46]} Bd7 {[%emt 0:00:33]} 9. Qc2 {[%emt 0:08:52]} e6 {[%emt 0:06:54]} 10. Bd3 {[%emt 0:12:44]} Rc8 {[%emt 0:02:46]} 11. Nf3 {[%emt 0:01:29]} Bb4 {[%emt 0:09:14]} 12. O-O {[%emt 0:02:26]} Nc4 {[%emt 0:10:38]} 13. Rac1 {[%emt 0:10:10]} Qa5 {[%emt 0:06:28]} 14. Bxc4 {[%emt 0:03:07]} Rxc4 {[%emt 0:00:05]} 15. Ne5 {[%emt 0:01:51]} Rc8 {[%emt 0:00:09]} 16. Qb3 {[%emt 0:08:29]} Bxc3 {[%emt 0:10:25]} 17. Rxc3 {[%emt 0:02:41]} Rxc3 {[%emt 0:00:07]} 18. bxc3 {[%emt 0:00:35]} Bb5 {[%emt 0:09:42]} 19. c4 {[%emt 0:10:32]} Ba6 {[%emt 0:04:53]} 20. Rc1 {[%emt 0:03:01]} O-O {[%emt 0:00:17]} 21. cxd5 {[%emt 0:00:50]} Nxd5 {[%emt 0:00:16]} 22. Bg3 {[%emt 0:01:06]} Qd2 {[%emt 0:04:24]} 23. Qa3 {[%emt 0:04:42]} Be2 {[%emt 0:14:54]} 24. h3 {[%emt 0:02:41]} a5 {[%emt 0:00:40]} 25. Nd7 {[%emt 0:05:33]} Rd8 {[%emt 0:02:16]} 26. Ne5 {[%emt 0:02:26]} h6 {[%emt 0:04:05]} 27. Nc4 {[%emt 0:02:48]} Bxc4 {[%emt 0:00:51]} 28. Rxc4 {[%emt 0:00:02]} Ra8 {[%emt 0:02:23]} 29. Qb3 {[%emt 0:02:03]} b6 {[%emt 0:02:14]} 30. a3 {[%emt 0:00:37]} Qe2 {[%emt 0:01:39]} 31. Kh2 {[%emt 0:00:42]} Kh7 {[%emt 0:01:22]} 32. Qb1+ {[%emt 0:01:24]} Kg8 {[%emt 0:00:23]} 33. Qb3 {[%emt 0:00:07]} Kh7 {[%emt 0:00:13]} 34. Qb1+ {[%emt 0:00:06]} Kg8 {[%emt 0:00:07]} 35. Qb3 {[%emt 0:00:06]} Kh7 {[%emt 0:00:06]} 36. Qb1+ {[%emt 0:00:34]} 1/2-1/2